[Event "*** Titled Tuesday Blitz"]
[Site "Chess.com"]
[Date "2021.02.16"]
[Round "4"]
[White "GoltsevDmitry2000"]
[Black "arminmusovic"]
[Result "1/2-1/2"]
[WhiteElo "2634"]
[BlackElo "2477"]
[TimeControl "180+1"]
[EndTime "10:42:33 PST"]
[Termination "Game drawn by repetition"]

1. c4 {[%clk 0:02:59]} 1... c5 {[%clk 0:02:58.9]} 2. g3 {[%clk 0:02:55]} 2...
Nc6 {[%clk 0:02:59.4]} 3. Bg2 {[%clk 0:02:49.2]} 3... g6 {[%clk 0:02:59.9]} 4.
Nc3 {[%clk 0:02:42.7]} 4... Bg7 {[%clk 0:02:59.8]} 5. Nf3 {[%clk 0:02:32.8]}
5... Nf6 {[%clk 0:02:58.8]} 6. d4 {[%clk 0:02:30.3]} 6... cxd4 {[%clk
0:02:58.1]} 7. Nxd4 {[%clk 0:02:30.4]} 7... Nxd4 {[%clk 0:02:58.5]} 8. Qxd4
{[%clk 0:02:29.7]} 8... O-O {[%clk 0:02:59.2]} 9. O-O {[%clk 0:02:26.6]} 9... d6
{[%clk 0:02:59.3]} 10. Qd3 {[%clk 0:02:24.8]} 10... a6 {[%clk 0:02:59.3]} 11.
Bd2 {[%clk 0:02:22.2]} 11... Bf5 {[%clk 0:02:54.4]} 12. e4 {[%clk 0:02:21]}
12... Be6 {[%clk 0:02:54.4]} 13. Nd5 {[%clk 0:02:18]} 13... Nxd5 {[%clk
0:02:52]} 14. cxd5 {[%clk 0:02:15.7]} 14... Bd7 {[%clk 0:02:48.6]} 15. Qb3
{[%clk 0:02:14.5]} 15... a5 {[%clk 0:02:32.9]} 16. Rac1 {[%clk 0:02:04]} 16...
b5 {[%clk 0:02:29.4]} 17. Be3 {[%clk 0:01:51.2]} 17... a4 {[%clk 0:02:17]} 18.
Qb4 {[%clk 0:01:42.1]} 18... Qa5 {[%clk 0:02:16.6]} 19. Qxa5 {[%clk 0:01:38.9]}
19... Rxa5 {[%clk 0:02:16.3]} 20. Rc7 {[%clk 0:01:39.8]} 20... Bc8 {[%clk
0:01:52.8]} 21. Rfc1 {[%clk 0:01:36.2]} 21... Ra8 {[%clk 0:01:52.8]} 22. b3
{[%clk 0:01:30.1]} 22... axb3 {[%clk 0:01:50.8]} 23. axb3 {[%clk 0:01:31]} 23...
Bb2 {[%clk 0:01:36.3]} 24. Rb1 {[%clk 0:01:29.7]} 24... Bf6 {[%clk 0:01:33.4]}
25. Bf1 {[%clk 0:01:26.6]} 25... Bg4 {[%clk 0:01:06.9]} 26. Kg2 {[%clk
0:01:18.3]} 26... b4 {[%clk 0:00:53.2]} 27. h3 {[%clk 0:01:09]} 27... Bc8 {[%clk
0:00:50.5]} 28. Bd2 {[%clk 0:01:08]} 28... Bd4 {[%clk 0:00:40]} 29. Bxb4 {[%clk
0:01:05.1]} 29... Ra2 {[%clk 0:00:40]} 30. Be1 {[%clk 0:01:05.3]} 30... f5
{[%clk 0:00:36.1]} 31. Rc4 {[%clk 0:00:52.9]} 31... Bxf2 {[%clk 0:00:31.6]} 32.
Bxf2 {[%clk 0:00:49.7]} 32... fxe4 {[%clk 0:00:31.9]} 33. Rxe4 {[%clk
0:00:50.2]} 33... Bf5 {[%clk 0:00:28.2]} 34. Rxe7 {[%clk 0:00:42.2]} 34... Bxb1
{[%clk 0:00:24.5]} 35. Be2 {[%clk 0:00:42.5]} 35... Bd3 {[%clk 0:00:19.3]} 36.
Bf3 {[%clk 0:00:39.5]} 36... Bf1+ {[%clk 0:00:17.7]} 37. Kxf1 {[%clk 0:00:31.9]}
37... Rxf3 {[%clk 0:00:18.6]} 38. Re2 {[%clk 0:00:32.4]} 38... Rxe2 {[%clk
0:00:19.2]} 39. Kxe2 {[%clk 0:00:33.3]} 39... Rxb3 {[%clk 0:00:19.8]} 40. Be3
{[%clk 0:00:28.7]} 40... Kf7 {[%clk 0:00:19.8]} 41. Kf3 {[%clk 0:00:28.8]} 41...
Ra3 {[%clk 0:00:17.6]} 42. Ke4 {[%clk 0:00:27.4]} 42... Ra4+ {[%clk 0:00:16.4]}
43. Bd4 {[%clk 0:00:26.4]} 43... g5 {[%clk 0:00:15.7]} 44. g4 {[%clk 0:00:25.5]}
44... Ra3 {[%clk 0:00:14.9]} 45. Be3 {[%clk 0:00:25.4]} 45... h6 {[%clk
0:00:15.3]} 46. Kd4 {[%clk 0:00:24.2]} 46... Ke7 {[%clk 0:00:14.5]} 47. Ke4
{[%clk 0:00:24.6]} 47... Kd7 {[%clk 0:00:14.4]} 48. Kd4 {[%clk 0:00:19.1]} 48...
Ke7 {[%clk 0:00:14.9]} 49. Ke4 {[%clk 0:00:19.6]} 49... Ra4+ {[%clk 0:00:14.9]}
50. Kf5 {[%clk 0:00:17.7]} 50... Ra3 {[%clk 0:00:14.7]} 51. Ke4 {[%clk
0:00:17.7]} 1/2-1/2

[Event "*** Titled Tuesday Blitz"]
[Site "Chess.com"]
[Date "2021.02.16"]
[Round "4"]
[White "Hercog"]
[Black "MerryPoppies"]
[Result "1-0"]
[WhiteElo "2361"]
[BlackElo "2176"]
[TimeControl "180+1"]
[EndTime "10:42:34 PST"]
[Termination "Hercog won on time"]

1. d4 {[%clk 0:01:59.3]} 1... d5 {[%clk 0:02:57.8]} 2. c4 {[%clk 0:01:59.1]}
2... e5 {[%clk 0:02:57.7]} 3. dxe5 {[%clk 0:01:58.8]} 3... d4 {[%clk 0:02:57.8]}
4. Nf3 {[%clk 0:01:59.2]} 4... Nc6 {[%clk 0:02:57.9]} 5. Nbd2 {[%clk 0:01:59.6]}
5... Nge7 {[%clk 0:02:57.3]} 6. Nb3 {[%clk 0:01:47.8]} 6... Ng6 {[%clk
0:02:56.4]} 7. Nbxd4 {[%clk 0:01:45.2]} 7... Ngxe5 {[%clk 0:02:55.3]} 8. Nxe5
{[%clk 0:01:42.6]} 8... Nxe5 {[%clk 0:02:42.2]} 9. e3 {[%clk 0:01:41.2]} 9... c5
{[%clk 0:02:22.9]} 10. Nb5 {[%clk 0:01:40.3]} 10... Qb6 {[%clk 0:02:03.2]} 11.
Be2 {[%clk 0:01:32.5]} 11... Bd7 {[%clk 0:02:00.7]} 12. O-O {[%clk 0:01:27.7]}
12... Nxc4 {[%clk 0:01:31.2]} 13. Bxc4 {[%clk 0:01:26.4]} 13... Bxb5 {[%clk
0:01:30.9]} 14. Bxb5+ {[%clk 0:01:11.6]} 14... Qxb5 {[%clk 0:01:30.1]} 15. Qg4
{[%clk 0:01:11.8]} 15... Qd7 {[%clk 0:01:11.5]} 16. Qe4+ {[%clk 0:01:07.6]}
16... Be7 {[%clk 0:01:02.2]} 17. b3 {[%clk 0:01:07.5]} 17... O-O {[%clk
0:00:49]} 18. Bb2 {[%clk 0:01:07.2]} 18... Rad8 {[%clk 0:00:48.6]} 19. h3 {[%clk
0:00:55]} 19... f5 {[%clk 0:00:38]} 20. Qc4+ {[%clk 0:00:47]} 20... Qd5 {[%clk
0:00:37.8]} 21. Rfd1 {[%clk 0:00:43.8]} 21... Qxc4 {[%clk 0:00:33.8]} 22. bxc4
{[%clk 0:00:43.9]} 22... Rxd1+ {[%clk 0:00:32]} 23. Rxd1 {[%clk 0:00:43.7]}
23... Rd8 {[%clk 0:00:32.9]} 24. Rxd8+ {[%clk 0:00:43.1]} 24... Bxd8 {[%clk
0:00:33]} 25. Kf1 {[%clk 0:00:40.3]} 25... Kf7 {[%clk 0:00:32.9]} 26. Be5 {[%clk
0:00:37.8]} 26... a6 {[%clk 0:00:18.2]} 27. a4 {[%clk 0:00:36.9]} 27... Bf6
{[%clk 0:00:16.3]} 28. Bd6 {[%clk 0:00:35.6]} 28... b6 {[%clk 0:00:15.9]} 29.
Bc7 {[%clk 0:00:34.2]} 29... Be7 {[%clk 0:00:08.2]} 30. Bxb6 {[%clk 0:00:33.5]}
30... Ke6 {[%clk 0:00:08.7]} 31. Ke2 {[%clk 0:00:33.1]} 31... Ke5 {[%clk
0:00:08.7]} 32. Ba5 {[%clk 0:00:30.5]} 32... g5 {[%clk 0:00:07.9]} 33. Kd3
{[%clk 0:00:28]} 33... f4 {[%clk 0:00:07.3]} 34. g4 {[%clk 0:00:21.2]} 34...
fxe3 {[%clk 0:00:07.3]} 35. fxe3 {[%clk 0:00:20.5]} 35... Bd6 {[%clk 0:00:07.9]}
36. Bc3+ {[%clk 0:00:19.6]} 36... Ke6 {[%clk 0:00:07.4]} 37. Ke4 {[%clk
0:00:19.8]} 37... Bc7 {[%clk 0:00:07.4]} 38. Bg7 {[%clk 0:00:18.7]} 38... Bg3
{[%clk 0:00:06.5]} 39. Bh6 {[%clk 0:00:16.5]} 39... Kf6 {[%clk 0:00:02.6]} 40.
Kd5 {[%clk 0:00:14.9]} 40... Bf2 {[%clk 0:00:02.8]} 41. e4 {[%clk 0:00:11.1]}
41... Bd4 {[%clk 0:00:02.7]} 42. Bf8 {[%clk 0:00:08.6]} 1-0

[Event "*** Titled Tuesday Blitz"]
[Site "Chess.com"]
[Date "2021.02.16"]
[Round "4"]
[White "rachidhuilda"]
[Black "abeljusto"]
[Result "1-0"]
[WhiteElo "2271"]
[BlackElo "2028"]
[TimeControl "180+1"]
[EndTime "10:42:34 PST"]
[Termination "rachidhuilda won by resignation"]

1. d4 {[%clk 0:02:57.9]} 1... Nf6 {[%clk 0:03:00.9]} 2. Bg5 {[%clk 0:02:57.3]}
2... d5 {[%clk 0:02:55.6]} 3. Bxf6 {[%clk 0:02:56.8]} 3... exf6 {[%clk
0:02:55.4]} 4. e3 {[%clk 0:02:54.8]} 4... Bd6 {[%clk 0:02:54.4]} 5. g3 {[%clk
0:02:54.7]} 5... O-O {[%clk 0:02:53.1]} 6. Bg2 {[%clk 0:02:54.8]} 6... c6 {[%clk
0:02:53.4]} 7. Ne2 {[%clk 0:02:54.6]} 7... f5 {[%clk 0:02:47.3]} 8. O-O {[%clk
0:02:53.3]} 8... Nd7 {[%clk 0:02:47.8]} 9. Nd2 {[%clk 0:02:48]} 9... Nf6 {[%clk
0:02:48]} 10. c4 {[%clk 0:02:46.8]} 10... dxc4 {[%clk 0:02:47]} 11. Nxc4 {[%clk
0:02:46.6]} 11... Bc7 {[%clk 0:02:46.8]} 12. Qc2 {[%clk 0:02:45.8]} 12... g6
{[%clk 0:02:44.8]} 13. b4 {[%clk 0:02:45]} 13... Be6 {[%clk 0:02:43.5]} 14. Rab1
{[%clk 0:02:44.2]} 14... a6 {[%clk 0:02:37.6]} 15. a4 {[%clk 0:02:41]} 15... Rc8
{[%clk 0:02:17.8]} 16. Rfd1 {[%clk 0:02:12]} 16... Bd5 {[%clk 0:02:09.8]} 17.
Qd3 {[%clk 0:01:54.7]} 17... Ne4 {[%clk 0:02:03.1]} 18. Nc3 {[%clk 0:01:47.9]}
18... Nxc3 {[%clk 0:01:58.5]} 19. Qxc3 {[%clk 0:01:46.2]} 19... Bxg2 {[%clk
0:01:55.9]} 20. Kxg2 {[%clk 0:01:46.4]} 20... Qd5+ {[%clk 0:01:56.2]} 21. Kg1
{[%clk 0:01:46.3]} 21... h5 {[%clk 0:01:46.9]} 22. Qd3 {[%clk 0:01:17.5]} 22...
h4 {[%clk 0:01:42.3]} 23. Qf1 {[%clk 0:01:12.6]} 23... Kg7 {[%clk 0:01:35.4]}
24. Nd2 {[%clk 0:00:54]} 24... Rh8 {[%clk 0:01:30.4]} 25. Qg2 {[%clk 0:00:51.5]}
25... Qxg2+ {[%clk 0:01:17.9]} 26. Kxg2 {[%clk 0:00:51.2]} 26... hxg3 {[%clk
0:01:17.5]} 27. hxg3 {[%clk 0:00:50.7]} 27... Bd6 {[%clk 0:01:16.3]} 28. b5
{[%clk 0:00:46.9]} 28... cxb5 {[%clk 0:01:14.9]} 29. axb5 {[%clk 0:00:46.7]}
29... a5 {[%clk 0:01:13.9]} 30. b6 {[%clk 0:00:32.9]} 30... Rc2 {[%clk
0:01:09.2]} 31. Rb5 {[%clk 0:00:23.6]} 31... Bb4 {[%clk 0:01:07.3]} 32. Nb3
{[%clk 0:00:21.8]} 32... Rb2 {[%clk 0:00:51.3]} 33. Nxa5 {[%clk 0:00:21.7]}
33... Rc8 {[%clk 0:00:32.9]} 34. Nxb7 {[%clk 0:00:21.2]} 34... Rb8 {[%clk
0:00:32.9]} 35. Nc5 {[%clk 0:00:18.9]} 35... Bc3 {[%clk 0:00:19.4]} 36. Rxb2
{[%clk 0:00:15.4]} 36... Bxb2 {[%clk 0:00:18.4]} 37. Rb1 {[%clk 0:00:15.5]}
37... Ba3 {[%clk 0:00:16.5]} 38. b7 {[%clk 0:00:14.8]} 38... Kf6 {[%clk
0:00:12.2]} 39. Nd7+ {[%clk 0:00:14.3]} 39... Ke7 {[%clk 0:00:12.2]} 40. Nxb8
{[%clk 0:00:14.1]} 40... Bd6 {[%clk 0:00:11]} 41. Na6 {[%clk 0:00:14]} 41... Kd7
{[%clk 0:00:10.3]} 42. b8=Q {[%clk 0:00:14.1]} 42... Bxb8 {[%clk 0:00:10.1]} 43.
Rxb8 {[%clk 0:00:13.2]} 43... Kc6 {[%clk 0:00:09.6]} 44. Rf8 {[%clk 0:00:12.6]}
44... Kb7 {[%clk 0:00:08.4]} 45. Rxf7+ {[%clk 0:00:12.7]} 45... Kxa6 {[%clk
0:00:08.2]} 46. Rf6+ {[%clk 0:00:12.8]} 46... Kb5 {[%clk 0:00:07.7]} 47. Rxg6
{[%clk 0:00:13.3]} 47... Kc4 {[%clk 0:00:07.7]} 48. Rf6 {[%clk 0:00:13.8]} 1-0

[Event "*** Titled Tuesday Blitz"]
[Site "Chess.com"]
[Date "2021.02.16"]
[Round "4"]
[White "swisspower96"]
[Black "NikolaN98"]
[Result "1-0"]
[WhiteElo "2635"]
[BlackElo "2465"]
[TimeControl "180+1"]
[EndTime "10:42:35 PST"]
[Termination "swisspower96 won by resignation"]

1. d4 {[%clk 0:03:00.9]} 1... e6 {[%clk 0:02:52.6]} 2. c4 {[%clk 0:03:00]} 2...
f5 {[%clk 0:02:52.3]} 3. Nf3 {[%clk 0:02:59.9]} 3... Nf6 {[%clk 0:02:52]} 4. g3
{[%clk 0:02:55]} 4... Be7 {[%clk 0:02:50.8]} 5. Bg2 {[%clk 0:02:55.3]} 5... O-O
{[%clk 0:02:50.6]} 6. O-O {[%clk 0:02:56]} 6... d6 {[%clk 0:02:49.8]} 7. Nc3
{[%clk 0:02:56.7]} 7... a5 {[%clk 0:02:49.1]} 8. Qc2 {[%clk 0:02:51.8]} 8... Nc6
{[%clk 0:02:42.1]} 9. a3 {[%clk 0:02:51.8]} 9... e5 {[%clk 0:02:40.5]} 10. d5
{[%clk 0:02:49.3]} 10... Nb8 {[%clk 0:02:38]} 11. e4 {[%clk 0:02:49.1]} 11...
fxe4 {[%clk 0:02:20.5]} 12. Nxe4 {[%clk 0:02:48.9]} 12... Nxe4 {[%clk
0:02:17.5]} 13. Qxe4 {[%clk 0:02:48.4]} 13... Nd7 {[%clk 0:02:08.9]} 14. Be3
{[%clk 0:02:42.4]} 14... Qe8 {[%clk 0:01:54.6]} 15. Qc2 {[%clk 0:02:34.7]} 15...
Qh5 {[%clk 0:01:52.2]} 16. Qd1 {[%clk 0:01:52.8]} 16... Nf6 {[%clk 0:01:37.6]}
17. Nd2 {[%clk 0:01:36.6]} 17... Bg4 {[%clk 0:01:33.2]} 18. f3 {[%clk
0:01:35.2]} 18... Bd7 {[%clk 0:01:23.4]} 19. b4 {[%clk 0:01:31.5]} 19... Qg6
{[%clk 0:00:57.9]} 20. Qe2 {[%clk 0:01:27.5]} 20... h5 {[%clk 0:00:57.5]} 21. f4
{[%clk 0:00:53]} 21... Ng4 {[%clk 0:00:44.8]} 22. fxe5 {[%clk 0:00:43.9]} 22...
Nxe3 {[%clk 0:00:36.3]} 23. Qxe3 {[%clk 0:00:40.9]} 23... Bg5 {[%clk 0:00:36.3]}
24. Qc3 {[%clk 0:00:26.3]} 24... axb4 {[%clk 0:00:30.6]} 25. axb4 {[%clk
0:00:26.3]} 25... Rxa1 {[%clk 0:00:29.6]} 26. Rxa1 {[%clk 0:00:27.2]} 26... dxe5
{[%clk 0:00:29.7]} 27. Ne4 {[%clk 0:00:25.8]} 27... h4 {[%clk 0:00:25.7]} 28.
Rf1 {[%clk 0:00:19.6]} 28... hxg3 {[%clk 0:00:23.3]} 29. Rxf8+ {[%clk
0:00:18.5]} 29... Kxf8 {[%clk 0:00:23]} 30. Qxg3 {[%clk 0:00:18.8]} 30... Bf5
{[%clk 0:00:19.8]} 31. Nxg5 {[%clk 0:00:16.8]} 31... Kg8 {[%clk 0:00:16.7]} 32.
h4 {[%clk 0:00:16.5]} 32... e4 {[%clk 0:00:16.1]} 33. Qe5 {[%clk 0:00:16.3]}
33... e3 {[%clk 0:00:06.8]} 34. Qxe3 {[%clk 0:00:15.4]} 34... Bd7 {[%clk
0:00:05.2]} 35. c5 {[%clk 0:00:15]} 35... Qf6 {[%clk 0:00:05]} 36. c6 {[%clk
0:00:13]} 36... bxc6 {[%clk 0:00:04.6]} 37. dxc6 {[%clk 0:00:13.6]} 37... Bxc6
{[%clk 0:00:03]} 38. Qe6+ {[%clk 0:00:13.9]} 38... Qxe6 {[%clk 0:00:03.1]} 39.
Nxe6 {[%clk 0:00:14.8]} 39... Bd7 {[%clk 0:00:02.6]} 40. Nxc7 {[%clk 0:00:15.1]}
40... Kf7 {[%clk 0:00:03.3]} 41. b5 {[%clk 0:00:15.7]} 41... Ke7 {[%clk
0:00:03.8]} 42. b6 {[%clk 0:00:16.4]} 42... Kd6 {[%clk 0:00:03.8]} 43. Na6
{[%clk 0:00:13.7]} 43... Bc8 {[%clk 0:00:02.5]} 44. b7 {[%clk 0:00:12.7]} 44...
Bxb7 {[%clk 0:00:02.4]} 45. Bxb7 {[%clk 0:00:13.6]} 45... Ke5 {[%clk 0:00:03.2]}
46. Kg2 {[%clk 0:00:14]} 46... Kf4 {[%clk 0:00:03.4]} 47. Kh3 {[%clk 0:00:13.4]}
47... g5 {[%clk 0:00:02.7]} 48. h5 {[%clk 0:00:13.5]} 48... g4+ {[%clk
0:00:03.6]} 49. Kh4 {[%clk 0:00:14]} 49... g3 {[%clk 0:00:03.3]} 50. h6 {[%clk
0:00:14.5]} 50... g2 {[%clk 0:00:02.9]} 51. Bxg2 {[%clk 0:00:14.9]} 1-0

[Event "*** Titled Tuesday Blitz"]
[Site "Chess.com"]
[Date "2021.02.16"]
[Round "4"]
[White "Fighter008"]
[Black "kamilianin235"]
[Result "0-1"]
[WhiteElo "2570"]
[BlackElo "2194"]
[TimeControl "180+1"]
[EndTime "10:42:44 PST"]
[Termination "kamilianin235 won by resignation"]

1. e4 {[%clk 0:03:00.9]} 1... c5 {[%clk 0:02:57.7]} 2. Nf3 {[%clk 0:02:56.6]}
2... d6 {[%clk 0:02:57.4]} 3. d4 {[%clk 0:02:56.1]} 3... cxd4 {[%clk 0:02:58.3]}
4. Nxd4 {[%clk 0:02:56.9]} 4... Nf6 {[%clk 0:02:58.3]} 5. Nc3 {[%clk 0:02:56]}
5... Nc6 {[%clk 0:02:58.4]} 6. f3 {[%clk 0:02:45.5]} 6... e5 {[%clk 0:02:50.6]}
7. Nb3 {[%clk 0:02:45.1]} 7... Be6 {[%clk 0:02:47.3]} 8. Be3 {[%clk 0:02:44.6]}
8... d5 {[%clk 0:02:44.6]} 9. exd5 {[%clk 0:02:43.9]} 9... Nxd5 {[%clk
0:02:43.7]} 10. Nxd5 {[%clk 0:02:44.1]} 10... Qxd5 {[%clk 0:02:37.9]} 11. Qxd5
{[%clk 0:02:43.8]} 11... Bxd5 {[%clk 0:02:38.8]} 12. O-O-O {[%clk 0:02:44.1]}
12... O-O-O {[%clk 0:02:37.9]} 13. Bd3 {[%clk 0:02:37.7]} 13... Be7 {[%clk
0:02:31.9]} 14. Rhe1 {[%clk 0:02:33.4]} 14... Rhe8 {[%clk 0:02:26.6]} 15. Bf5+
{[%clk 0:02:13.1]} 15... Kb8 {[%clk 0:02:23.5]} 16. Nc5 {[%clk 0:02:10.2]} 16...
g6 {[%clk 0:02:10.4]} 17. Bd7 {[%clk 0:01:50]} 17... Bxc5 {[%clk 0:01:40.2]} 18.
Bxe8 {[%clk 0:01:48.9]} 18... Bxe3+ {[%clk 0:01:27.3]} 19. Rxe3 {[%clk
0:01:49.8]} 19... Rxe8 {[%clk 0:01:26.7]} 20. Rxd5 {[%clk 0:01:48.9]} 20... Kc7
{[%clk 0:01:26.3]} 21. c3 {[%clk 0:01:43.1]} 21... f6 {[%clk 0:01:21.1]} 22. f4
{[%clk 0:01:39.9]} 22... Re7 {[%clk 0:01:14.1]} 23. fxe5 {[%clk 0:01:37.1]}
23... Nxe5 {[%clk 0:01:12.7]} 24. Kc2 {[%clk 0:01:33.8]} 24... Re6 {[%clk
0:01:08.6]} 25. b4 {[%clk 0:01:28.6]} 25... Ra6 {[%clk 0:01:06.3]} 26. Kb3
{[%clk 0:01:25.4]} 26... Kc6 {[%clk 0:01:03.2]} 27. Rd8 {[%clk 0:01:15.3]} 27...
b5 {[%clk 0:01:00.4]} 28. Rf8 {[%clk 0:01:10.9]} 28... Kd7 {[%clk 0:00:36.7]}
29. Re4 {[%clk 0:01:02.1]} 29... Nc4 {[%clk 0:00:33.1]} 30. Rf7+ {[%clk
0:00:59.7]} 30... Kd8 {[%clk 0:00:33.1]} 31. a4 {[%clk 0:00:35.4]} 31... Nd2+
{[%clk 0:00:27.5]} 32. Kc2 {[%clk 0:00:34.4]} 32... Nxe4 {[%clk 0:00:27.4]} 33.
axb5 {[%clk 0:00:33.4]} 33... Rb6 {[%clk 0:00:22.6]} 34. Rxa7 {[%clk 0:00:28.3]}
34... Rxb5 {[%clk 0:00:21]} 35. Rxh7 {[%clk 0:00:28.4]} 35... g5 {[%clk
0:00:16.3]} 36. Rf7 {[%clk 0:00:22.9]} 36... Rf5 {[%clk 0:00:13.9]} 37. Kb3
{[%clk 0:00:22.6]} 37... Ke8 {[%clk 0:00:12.1]} 38. Ra7 {[%clk 0:00:21.8]} 38...
Rf2 {[%clk 0:00:11.7]} 39. b5 {[%clk 0:00:20.4]} 39... Rxg2 {[%clk 0:00:10.3]}
40. c4 {[%clk 0:00:20.1]} 40... Rxh2 {[%clk 0:00:09.7]} 41. Kb4 {[%clk
0:00:18.2]} 41... Rh1 {[%clk 0:00:08.9]} 42. b6 {[%clk 0:00:16.3]} 42... Rb1+
{[%clk 0:00:08.5]} 43. Ka5 {[%clk 0:00:15.4]} 43... Kd8 {[%clk 0:00:08.1]} 44.
Ra8+ {[%clk 0:00:13.2]} 44... Kd7 {[%clk 0:00:07.2]} 45. Ka6 {[%clk 0:00:13.8]}
45... Ra1+ {[%clk 0:00:05.8]} 46. Kb7 {[%clk 0:00:14]} 46... Nc5+ {[%clk
0:00:05.8]} 47. Kb8 {[%clk 0:00:14.5]} 47... Rxa8+ {[%clk 0:00:04.6]} 48. Kxa8
{[%clk 0:00:14.8]} 48... Kc6 {[%clk 0:00:05.2]} 49. Ka7 {[%clk 0:00:13.6]} 49...
g4 {[%clk 0:00:04.2]} 0-1

[Event "*** Titled Tuesday Blitz"]
[Site "Chess.com"]
[Date "2021.02.16"]
[Round "4"]
[White "seorobert1971"]
[Black "Salem-AR"]
[Result "1/2-1/2"]
[WhiteElo "2720"]
[BlackElo "2909"]
[TimeControl "180+1"]
[EndTime "10:42:47 PST"]
[Termination "Game drawn - insufficient material"]

1. d4 {[%clk 0:03:00.9]} 1... Nf6 {[%clk 0:02:59]} 2. c4 {[%clk 0:03:01.8]} 2...
g6 {[%clk 0:02:59.6]} 3. Nc3 {[%clk 0:03:02]} 3... d5 {[%clk 0:03:00.4]} 4. Bg5
{[%clk 0:03:01.2]} 4... Ne4 {[%clk 0:02:59.6]} 5. Bh4 {[%clk 0:03:01]} 5... Nxc3
{[%clk 0:03:00.4]} 6. bxc3 {[%clk 0:03:01.9]} 6... dxc4 {[%clk 0:03:00.6]} 7. e3
{[%clk 0:03:01.9]} 7... Be6 {[%clk 0:03:00.9]} 8. Nh3 {[%clk 0:03:01.7]} 8...
Bh6 {[%clk 0:03:00.2]} 9. Bg5 {[%clk 0:02:58.6]} 9... Bxg5 {[%clk 0:02:51.3]}
10. Nxg5 {[%clk 0:02:58.4]} 10... Bd5 {[%clk 0:02:52.1]} 11. e4 {[%clk
0:02:57.9]} 11... h6 {[%clk 0:02:52.9]} 12. exd5 {[%clk 0:02:57.3]} 12... hxg5
{[%clk 0:02:53.7]} 13. Bxc4 {[%clk 0:02:56.8]} 13... Qd6 {[%clk 0:02:54.5]} 14.
Qb3 {[%clk 0:02:46]} 14... b6 {[%clk 0:02:44.9]} 15. g3 {[%clk 0:02:38]} 15...
Kf8 {[%clk 0:02:42.8]} 16. O-O {[%clk 0:02:34.6]} 16... Nd7 {[%clk 0:02:41.3]}
17. Rae1 {[%clk 0:02:26.8]} 17... Nf6 {[%clk 0:02:41.1]} 18. f3 {[%clk
0:02:26.6]} 18... Kg7 {[%clk 0:02:32.7]} 19. Re5 {[%clk 0:02:20.9]} 19... Rh5
{[%clk 0:02:30.6]} 20. Rfe1 {[%clk 0:02:09.3]} 20... Rah8 {[%clk 0:02:27.8]} 21.
R1e2 {[%clk 0:02:09.1]} 21... Nd7 {[%clk 0:01:42.3]} 22. Rxe7 {[%clk 0:01:45.9]}
22... Rxh2 {[%clk 0:01:40.8]} 23. Rxh2 {[%clk 0:01:43.4]} 23... Qxe7 {[%clk
0:01:36.8]} 24. Rxh8 {[%clk 0:01:35.5]} 24... Qe1+ {[%clk 0:01:30.6]} 25. Kg2
{[%clk 0:01:34.9]} 25... Qd2+ {[%clk 0:01:30.8]} 26. Kg1 {[%clk 0:01:32.6]}
26... Kxh8 {[%clk 0:01:27.1]} 27. Qa3 {[%clk 0:01:29.7]} 27... Qe3+ {[%clk
0:01:17.7]} 28. Kg2 {[%clk 0:01:29.3]} 28... Kg7 {[%clk 0:01:15.3]} 29. Qxa7
{[%clk 0:01:24.8]} 29... Qd2+ {[%clk 0:01:14.6]} 30. Kg1 {[%clk 0:01:22.4]}
30... Qxc3 {[%clk 0:00:58.7]} 31. Qxc7 {[%clk 0:01:15]} 31... Qxd4+ {[%clk
0:00:58.7]} 32. Kg2 {[%clk 0:01:15]} 32... Ne5 {[%clk 0:00:55.8]} 33. Be2 {[%clk
0:01:09.9]} 33... Qxd5 {[%clk 0:00:39.3]} 34. Qxb6 {[%clk 0:01:07]} 34... Qxa2
{[%clk 0:00:37.3]} 35. Qe3 {[%clk 0:01:05.5]} 35... Qb2 {[%clk 0:00:36.6]} 36.
Kf2 {[%clk 0:00:59.3]} 36... Kf6 {[%clk 0:00:34.4]} 37. Kf1 {[%clk 0:00:56.1]}
37... Qb1+ {[%clk 0:00:28.6]} 38. Kg2 {[%clk 0:00:55.7]} 38... Qb2 {[%clk
0:00:27.7]} 39. Kf1 {[%clk 0:00:55.6]} 39... Qa1+ {[%clk 0:00:27.4]} 40. Kg2
{[%clk 0:00:55.4]} 40... Qa5 {[%clk 0:00:26.4]} 41. f4 {[%clk 0:00:53.7]} 41...
gxf4 {[%clk 0:00:27.3]} 42. gxf4 {[%clk 0:00:52.6]} 42... Nd7 {[%clk 0:00:26.2]}
43. Qd4+ {[%clk 0:00:51.7]} 43... Ke7 {[%clk 0:00:26.8]} 44. Bc4 {[%clk
0:00:48.7]} 44... Qf5 {[%clk 0:00:23.7]} 45. Kf3 {[%clk 0:00:45.4]} 45... Qh3+
{[%clk 0:00:17.9]} 46. Kf2 {[%clk 0:00:45.1]} 46... Qh4+ {[%clk 0:00:17.6]} 47.
Kf3 {[%clk 0:00:45]} 47... Qh1+ {[%clk 0:00:18]} 48. Kf2 {[%clk 0:00:44.8]}
48... Qh3 {[%clk 0:00:16.5]} 49. Qe3+ {[%clk 0:00:41.2]} 49... Qxe3+ {[%clk
0:00:16.7]} 50. Kxe3 {[%clk 0:00:42.1]} 50... Nc5 {[%clk 0:00:15.9]} 51. Kd4
{[%clk 0:00:39.6]} 51... Ne6+ {[%clk 0:00:16]} 52. Ke3 {[%clk 0:00:39.4]} 52...
Ng7 {[%clk 0:00:14.8]} 53. Ke4 {[%clk 0:00:38.3]} 53... Nf5 {[%clk 0:00:14.7]}
54. Bb3 {[%clk 0:00:38.3]} 54... Nd6+ {[%clk 0:00:15]} 55. Ke5 {[%clk
0:00:37.8]} 55... f6+ {[%clk 0:00:15]} 56. Kd4 {[%clk 0:00:37.5]} 56... Nf5+
{[%clk 0:00:15.1]} 57. Ke4 {[%clk 0:00:37.4]} 57... Kd6 {[%clk 0:00:14.7]} 58.
Bf7 {[%clk 0:00:35.4]} 58... Ne7 {[%clk 0:00:15.1]} 59. Bxg6 {[%clk 0:00:28.7]}
59... Nxg6 {[%clk 0:00:13.1]} 60. Kf5 {[%clk 0:00:28.5]} 60... Nxf4 {[%clk
0:00:13.6]} 61. Kxf6 {[%clk 0:00:28.2]} 1/2-1/2